bitfinex-derivatives/quotes_BNBF0:USTF0_20250521
["timestamp","ask_amount","ask_price","bid_price","bid_amount"]
[1747825602956,0.764,654.33,652.88,0.61571158]
[1747825603153,0.764,654.33,652.89,0.61571158]
[1747825603358,3.82008945,654.18,652.9,0.61571158]
[1747825603558,3.82008945,654.18,652.91,0.61571158]
[1747825603759,3.82008945,654.18,652.92,0.61571158]
[1747825603956,0.26632076,654.17,652.93,0.61576611]
[1747825604162,0.26632076,654.17,652.74,0.30603965]
[1747825604361,0.26632076,654.17,652.75,0.92190837]
[1747825604560,0.26632076,654.17,652.76,2.08214921]
[1747825604761,0.26632076,654.17,652.77,0.92190837]
[1747825604962,0.26632076,654.17,652.78,2.08214921]
[1747825605157,0.26632076,654.17,652.79,0.92190837]
[1747825605358,0.26632076,654.17,652.8,2.0822168]
[1747825605557,0.26632076,654.17,652.81,0.92197596]
[1747825605757,0.26632076,654.17,652.82,2.0822168]
[1747825605957,0.26632076,654.17,652.83,0.92197596]
[1747825606158,0.26632076,654.17,652.84,0.92197596]
[1747825606462,0.26632076,654.17,652.85,2.0822168]
[1747825606661,0.26632076,654.17,652.86,0.61585387]
[1747825606963,0.26632076,654.17,652.87,1.16024084]
[1747825607157,0.26632076,654.17,652.88,0.61609108]
[1747825607358,0.26632076,654.17,652.89,0.61609108]
[1747825607560,0.26632076,654.17,652.9,0.61609108]
[1747825607860,0.26632076,654.17,652.91,0.61609108]
[1747825608664,3.82008945,654.18,652.91,0.61609108]
[1747825609263,3.82008945,654.18,652.92,0.30603965]
[1747825609460,3.82008945,654.18,652.93,0.61609108]
[1747825610064,0.26632177,654.17,652.93,0.61609108]
[1747825610463,0.26632177,654.17,652.94,0.30603965]
[1747825610658,0.26632177,654.17,652.95,0.61609108]
[1747825611662,3.82008945,654.18,652.95,0.61609108]
[1747825612364,3.82008945,654.18,652.96,0.61626627]
[1747825612564,3.82008945,654.18,652.94,0.30603965]
[1747825612864,0.26632891,654.17,652.96,0.30603965]
[1747825613465,0.26632891,654.17,652.97,0.61647191]
[1747825613666,0.26632891,654.17,652.96,0.30603965]
[1747825613859,0.26632891,654.17,652.97,0.61646804]
[1747825614062,0.26632891,654.17,652.96,0.30603965]
[1747825614264,0.26632891,654.17,652.97,0.61646301]
[1747825614461,0.26632891,654.17,652.98,0.92265304]
[1747825614663,0.26632891,654.17,652.98,0.30603965]
[1747825615569,0.26632891,654.17,652.78,0.30603965]
[1747825615770,0.26632891,654.17,652.79,2.08608083]
[1747825616068,0.26632891,654.17,652.8,2.08608083]
[1747825616265,0.26632891,654.17,652.81,0.922973]
[1747825616462,0.26632891,654.17,652.82,0.922973]
[1747825616665,0.26632891,654.17,652.83,0.922973]
[1747825616868,0.26632891,654.17,652.84,0.922973]
[1747825617065,0.26632891,654.17,652.85,0.922973]
[1747825617269,0.26632891,654.17,652.86,0.922973]
[1747825617466,0.26632891,654.17,652.87,2.08608083]
[1747825617665,3.82008945,654.18,652.88,0.922973]
[1747825617865,3.82008945,654.18,652.89,0.922973]
[1747825618070,3.82008945,654.18,652.9,0.922973]
[1747825618268,3.82008945,654.18,652.91,2.08608083]
[1747825618469,3.82008945,654.18,652.92,2.39212048]
[1747825618672,3.82008945,654.18,652.93,0.61685045]
[1747825618873,3.82008945,654.18,652.93,1.77995828]
[1747825619074,0.26631872,654.17,652.94,0.61685045]
[1747825619775,0.26631872,654.17,652.95,0.9228901]
[1747825619970,0.26631872,654.17,652.96,0.61685045]
[1747825620575,3.82008945,654.18,652.97,0.30603965]
[1747825620875,3.82008945,654.18,652.98,0.61685045]
[1747825621076,3.82008945,654.18,652.99,0.61698851]
[1747825621276,3.82008945,654.18,653.0,0.61698851]
[1747825621475,3.82008945,654.18,652.97,0.30603965]
[1747825621671,3.82008945,654.18,652.98,0.61697913]
[1747825621975,0.26633095,654.17,652.99,0.61697913]
[1747825622173,0.26633095,654.17,653.0,0.61697913]
[1747825622371,0.26633095,654.17,652.97,0.30603965]
[1747825622580,0.26633095,654.17,653.01,0.30603965]
[1747825624076,0.26633095,654.17,652.85,0.30603965]
[1747825624280,0.26633095,654.17,652.86,0.92308154]
[1747825624474,0.26633095,654.17,652.87,0.92308154]
[1747825624676,0.26633095,654.17,652.88,0.92308154]
[1747825624874,0.26633095,654.17,652.89,0.92308154]
[1747825625074,0.26633095,654.17,652.9,0.92308154]
[1747825625274,0.26633095,654.17,652.91,2.08615326]
[1747825625473,0.26633095,654.17,652.92,0.92308154]
[1747825625675,0.26633095,654.17,652.93,0.61695786]
[1747825625974,0.26633095,654.17,652.94,0.61695786]
[1747825626176,0.26633095,654.17,652.95,0.61695786]
[1747825626379,0.26633095,654.17,652.96,0.61695786]
[1747825626573,0.26633095,654.17,652.97,0.61695786]
[1747825626875,0.88,654.16,652.98,0.61695786]
[1747825627078,0.88,654.16,652.99,0.61695786]
[1747825627279,0.88,654.16,653.0,0.61695786]
[1747825627582,0.88,654.16,652.95,0.30603965]
[1747825627878,0.2663126,654.15,652.96,0.61689192]
[1747825628075,0.2663126,654.15,652.97,0.61689192]
[1747825628279,0.2663126,654.15,652.96,0.30603965]
[1747825629181,0.2663126,654.15,652.97,0.30603965]
[1747825629677,0.88,654.16,652.97,0.30603965]
[1747825629881,0.26635133,654.14,652.97,0.30603965]
[1747825630682,0.26635133,654.14,652.98,0.30603965]
[1747825632382,0.26635133,654.14,652.65,0.30603965]
[1747825632583,0.26635133,654.14,652.66,0.92297415]
[1747825632783,0.26635133,654.14,652.67,0.92297415]
[1747825632983,0.26635133,654.14,652.68,2.08574488]
[1747825633185,0.26635133,654.14,652.69,0.92297415]
[1747825633381,0.26635133,654.14,652.7,1.2290138]
[1747825633585,0.26635133,654.14,652.71,2.08574488]
[1747825633785,0.26635133,654.14,652.72,0.92297415]
[1747825633987,0.26635133,654.14,652.73,2.08574488]
[1747825634187,0.26635133,654.14,652.74,0.92297415]
[1747825634385,0.26635133,654.14,652.75,0.92297415]
[1747825634583,0.26635133,654.14,652.76,2.08574488]
[1747825634783,0.26635133,654.14,652.77,0.92297415]
[1747825634982,0.26635133,654.14,652.78,0.92297364]
[1747825635183,0.26635133,654.14,652.79,1.77958326]
[1747825635483,0.26635133,654.14,652.8,1.77958326]
[1747825635687,0.88,654.16,652.81,0.61681253]
[1747825635988,0.26635133,654.13,652.82,0.61681253]
[1747825636288,0.26635133,654.13,652.83,0.61681253]
[1747825636485,0.26635133,654.13,652.84,0.61681253]
[1747825636681,0.26635133,654.13,652.85,0.61681253]
[1747825636884,0.26635133,654.13,652.79,0.30603965]
[1747825637082,0.26635133,654.13,652.85,0.30603965]
[1747825638288,0.26635133,654.13,652.57,0.30603965]
[1747825638489,0.26635133,654.13,652.58,0.92270091]
[1747825638689,0.88,654.16,652.59,2.08549332]
[1747825638989,0.88,654.16,652.6,2.08549332]
[1747825639186,0.88,654.16,652.61,0.92270091]
[1747825639387,0.88,654.16,652.62,0.92270091]
[1747825639587,0.88,654.16,652.63,2.08549332]
[1747825639790,0.88,654.16,652.64,0.92264781]
[1747825639986,0.26636866,654.15,652.65,0.92264781]
[1747825640192,0.26636866,654.15,652.66,0.92264781]
[1747825640388,0.26636866,654.15,652.67,0.92264781]
[1747825640588,0.26636866,654.15,652.68,0.92264781]
[1747825640789,0.26636866,654.15,652.69,0.92264781]
[1747825641087,0.26636866,654.15,652.7,2.08544022]
[1747825641291,0.26636866,654.15,652.71,0.92264781]
[1747825641591,0.26636866,654.15,652.72,2.0866412]
[1747825641792,3.82008945,654.61,652.73,0.92384879]
[1747825641988,0.26635949,654.14,652.74,2.0866412]
[1747825642189,0.26635949,654.14,652.75,0.92384879]
[1747825642385,3.82008945,654.61,652.76,2.0866412]
[1747825642586,3.82008945,654.61,652.77,0.92384879]
[1747825642790,3.82008945,654.61,652.78,2.0866412]
[1747825642991,0.26630853,654.6,652.79,0.92384879]
[1747825643291,0.26630853,654.6,652.8,0.92379229]
[1747825643587,0.26630853,654.6,652.81,0.92379229]
[1747825643787,0.26630853,654.6,652.82,0.61763125]
[1747825644091,0.26630853,654.6,652.83,0.61763125]
[1747825644291,0.26630853,654.6,652.84,0.61763125]
[1747825644490,0.26630853,654.6,652.85,0.61763125]
[1747825644689,0.26630853,654.6,652.86,0.61763125]
[1747825644885,0.26630853,654.6,652.87,0.61763125]
[1747825645086,0.885,654.59,652.88,0.61763125]
[1747825645286,0.885,654.59,652.89,0.61763125]
[1747825645490,0.885,654.59,652.9,0.61763125]
[1747825645693,0.885,654.59,652.84,0.30603965]
[1747825645992,0.885,654.59,652.85,0.61763747]
[1747825646187,3.82008945,654.01,652.86,0.61763747]
[1747825648294,3.82008945,654.01,652.87,0.30603965]
[1747825648594,3.82008945,654.01,652.88,0.61763747]
[1747825648890,0.26636051,654.0,652.88,0.61763747]
[1747825649595,0.26636051,654.0,652.89,0.30603965]
[1747825649792,0.26636051,654.0,652.9,0.61763747]
[1747825650295,0.26636051,654.0,652.89,0.30603965]
[1747825650594,0.26636051,654.0,652.9,0.61857866]
[1747825650796,0.26636051,654.0,652.69,0.30603965]
[1747825650997,0.26636051,654.0,652.7,0.92473482]
[1747825651290,0.26636051,654.0,652.71,0.92473482]
[1747825651490,0.26636051,654.0,652.72,0.92473482]
[1747825651691,0.26636051,654.0,652.73,0.92473482]
[1747825651890,0.26636051,654.0,652.74,0.92473482]
[1747825652095,0.26636051,654.0,652.75,2.08740754]
[1747825652295,0.26636051,654.0,652.76,0.92473339]
[1747825652596,0.26636051,654.0,652.77,2.39344719]
[1747825652796,0.26636051,654.0,652.78,2.08740754]
[1747825653095,0.26636051,654.0,652.79,0.61858108]
[1747825653295,0.26636051,654.0,652.8,1.78125523]
[1747825653497,0.26636051,654.0,652.81,0.61858108]
[1747825653692,3.82008945,654.01,652.82,0.61854638]
[1747825653997,3.82008945,654.01,652.83,0.61854638]
[1747825654298,3.82008945,654.01,652.84,0.92465731]
[1747825654597,3.82008945,654.01,652.85,2.08463322]
[1747825654797,3.82008945,654.01,652.86,2.08463322]
[1747825654997,3.82008945,654.01,652.87,0.92465731]
[1747825655194,3.82008945,654.01,652.88,2.08463322]
[1747825655398,3.82008945,654.01,652.89,0.92465731]
[1747825655594,0.26628509,654.24,652.94,0.30197727]
[1747825655793,0.26628509,654.24,652.95,2.0845023]
[1747825655997,0.26628509,654.24,652.96,0.92452639]
[1747825656197,0.26628509,654.24,652.97,2.0845023]
[1747825656397,0.26628509,654.24,652.98,0.92452639]
[1747825656597,0.26628509,654.24,652.99,0.92452639]
[1747825656798,0.885,654.59,653.0,0.92452639]
[1747825657099,0.885,654.59,653.01,2.0845023]
[1747825657293,0.885,654.59,653.02,0.92226556]
[1747825657494,0.885,654.59,653.01,1.15997591]
[1747825657495,0.885,654.59,653.03,0.92226556]
[1747825657698,0.885,654.59,653.04,2.08224147]
[1747825657896,0.26619649,654.58,653.05,1.22830521]
[1747825658099,0.26619649,654.58,653.06,2.08224147]
[1747825658296,0.26619649,654.58,653.07,0.61628555]
[1747825658496,0.26619649,654.58,653.08,0.61628555]
[1747825658799,0.26619649,654.58,653.09,0.61628555]
[1747825659000,0.26619649,654.58,653.1,0.9218149]
[1747825659194,0.26619649,654.58,653.11,0.61577525]
[1747825659701,0.885,654.59,653.11,0.61577525]
[1747825660001,0.885,654.59,653.1,0.30603965]
[1747825660504,0.885,654.59,653.11,0.30603965]
[1747825660998,0.26623315,654.58,653.11,0.30603965]
[1747825661603,0.26623315,654.58,653.12,0.30603965]
[1747825662605,0.885,654.59,653.12,0.30603965]
[1747825662799,0.885,654.59,653.13,0.30603965]
[1747825663905,0.26623315,654.58,653.13,0.30603965]
[1747825664104,0.26623315,654.58,653.14,0.30603965]
[1747825665703,0.885,654.59,653.15,0.30603965]
[1747825666007,0.26623315,654.57,653.15,0.30603965]
[1747825666307,0.26623315,654.57,653.16,0.30603965]
[1747825667604,0.26623315,654.57,652.82,0.30197727]
[1747825667809,0.26623315,654.57,652.83,0.92130448]
[1747825668010,0.26623315,654.57,652.84,2.07632506]
[1747825668203,0.26623315,654.57,652.85,0.92130448]
[1747825668509,0.26623315,654.57,652.86,0.92130448]
[1747825668808,0.885,654.59,652.87,2.07632506]
[1747825669011,0.26623009,654.56,652.88,1.22730332]
[1747825669204,0.26623009,654.56,652.89,2.07632506]
[1747825669508,0.26623009,654.56,652.9,0.92102071]
[1747825669708,0.26623009,654.56,652.91,0.92102071]
[1747825669909,0.26623009,654.56,652.92,0.92102071]
[1747825670108,0.26623009,654.56,652.93,2.07604129]
[1747825670309,0.26623009,654.56,652.94,0.92102071]
[1747825670509,0.26623009,654.56,652.95,0.92102071]
[1747825670706,0.26623009,654.56,652.96,2.07604129]
[1747825670910,0.26623009,654.56,652.97,0.92102071]
[1747825671210,0.26623009,654.56,652.98,0.92102071]
[1747825671510,0.26623009,654.56,652.99,2.38204013]
[1747825671706,0.885,654.59,653.0,2.07604059]
[1747825672005,0.885,654.59,653.0,1.15502058]
[1747825672209,3.82008945,654.94,653.0,1.15502058]
[1747825672407,3.82008945,654.94,652.99,0.30599884]
[1747825673010,0.26620972,654.93,652.99,0.30599884]
[1747825673212,0.26620972,654.93,653.0,0.30599884]
[1747825674711,0.809,654.92,652.78,0.30599884]
[1747825674912,0.809,654.92,652.79,0.92102152]
[1747825675108,0.809,654.92,652.8,0.92102152]
[1747825675408,0.809,654.92,652.81,2.07643269]
[1747825675609,0.809,654.92,652.82,0.92102152]
[1747825675913,0.26621583,654.91,652.83,2.07643269]
[1747825676115,0.26621583,654.91,652.84,2.07643269]
[1747825676314,0.26621583,654.91,652.85,0.92102152]
[1747825676613,0.26621583,654.91,652.86,0.92102152]
[1747825676809,0.26621583,654.91,652.87,0.92102152]
[1747825677012,0.26621583,654.91,652.88,0.92102152]
[1747825677208,0.26621583,654.91,652.89,0.92102152]
[1747825677409,0.26621583,654.91,652.9,2.07643269]
[1747825677612,0.26621583,654.91,652.91,0.92102152]
[1747825677912,0.26621583,654.91,652.92,0.61498257]
[1747825678112,0.26621583,654.91,652.93,0.61498257]
[1747825678314,0.26621583,654.91,652.94,0.61498257]
[1747825678514,0.26621583,654.91,652.95,0.61498257]
[1747825678812,0.26621583,654.91,652.96,0.61498257]
[1747825679013,0.26621583,654.91,652.97,0.61498257]
[1747825679313,0.26621583,654.91,652.93,0.30599884]
[1747825679614,0.26621583,654.91,652.98,0.30599884]
[1747825680712,3.82008945,654.6,652.98,0.30599884]
[1747825681018,3.82008945,654.6,652.8,0.30599884]
[1747825681218,3.82008945,654.6,652.81,0.92093313]
[1747825681518,3.82008945,654.6,652.82,2.0761758]
[1747825681718,3.82008945,654.6,652.83,0.92093313]
[1747825681913,3.82008945,654.6,652.84,0.92093313]
[1747825682117,3.82008945,654.6,652.85,2.0761758]
[1747825682318,3.82008945,654.6,652.86,0.61489031]
[1747825682718,3.82008945,654.6,652.87,0.61489031]
[1747825682920,3.82008945,654.6,652.88,0.61491334]
[1747825683123,3.82008945,654.6,652.89,0.61491334]
[1747825683323,3.82008945,654.6,652.9,0.61491334]
[1747825683520,3.82008945,654.6,652.91,0.61491334]
[1747825683725,3.82008945,654.6,652.9,0.30599884]
[1747825683926,3.82008945,654.6,652.91,0.61489496]
[1747825684224,3.82008945,654.6,652.9,0.30599884]
[1747825684422,3.82008945,654.6,652.91,0.61487617]
[1747825684623,3.82008945,654.6,652.9,0.30599884]
[1747825684823,3.82008945,654.6,652.91,0.61490286]
[1747825685023,3.82008945,654.6,652.92,0.61489343]
[1747825685226,3.82008945,654.6,652.9,0.30599884]
[1747825685426,3.82008945,654.6,652.91,0.61490455]
[1747825685721,3.82008945,654.6,652.74,0.30599884]
[1747825685922,3.82008945,654.6,652.75,2.07611885]
[1747825686121,3.82008945,654.6,652.76,0.92094905]
[1747825686320,0.26625861,654.59,652.77,0.92094905]
[1747825686523,0.26625861,654.59,652.78,0.92094905]
[1747825686828,3.82008945,654.6,652.79,0.92094905]
[1747825687028,0.26625351,654.58,652.8,0.92094905]
[1747825687227,0.26625351,654.58,652.81,0.92094905]
[1747825687428,0.26625351,654.58,652.77,0.30599884]
[1747825687429,0.26625351,654.58,652.82,2.07611853]
[1747825687629,0.26625351,654.58,652.83,0.92094873]
[1747825687823,0.26625351,654.58,652.84,0.92094873]
[1747825688023,0.26625351,654.58,652.85,2.07611853]
[1747825688224,0.26625351,654.58,652.86,0.61491528]
[1747825688428,0.26625351,654.58,652.87,0.61491528]
[1747825688628,0.26625351,654.58,652.88,0.61491528]
[1747825688928,0.26625351,654.58,652.89,0.61491528]
[1747825689128,0.26625351,654.58,652.9,0.61491528]
[1747825689428,0.26625351,654.58,652.91,0.61491528]
[1747825689629,0.26625351,654.58,652.92,0.61491528]
[1747825689825,3.82008945,654.6,652.92,0.61491528]
[1747825690029,0.26623926,654.57,652.92,0.61491528]
[1747825690929,0.26623926,654.57,652.93,0.30599884]
[1747825691530,0.26623926,654.57,652.94,0.61517816]
[1747825691730,0.26623926,654.57,652.95,0.61524567]
[1747825692027,0.26623926,654.57,652.96,0.61524567]
[1747825692229,0.26623926,654.57,652.97,0.61524667]
[1747825692425,0.26623926,654.57,652.93,0.30599884]
[1747825692627,0.26623926,654.57,652.98,0.30599884]
[1747825692827,3.82008945,654.6,652.98,0.30599884]
[1747825693030,0.26623722,654.56,652.98,0.30599884]
[1747825693831,0.26623722,654.56,652.79,0.30599884]
[1747825694033,0.26623722,654.56,652.8,2.07815826]
[1747825694226,0.26623722,654.56,652.81,2.07815826]
[1747825694426,0.26623722,654.56,652.82,0.92139908]
[1747825694627,0.26623722,654.56,652.83,2.07815826]
[1747825694830,0.26623722,654.56,652.84,0.92139908]
[1747825695034,0.26623722,654.56,652.85,0.92139908]
[1747825695235,0.26623722,654.56,652.86,2.07815826]
[1747825695534,3.82008945,654.42,652.87,0.92139908]
[1747825695730,3.82008945,654.42,652.88,0.92139908]
[1747825695931,3.82008945,654.42,652.89,0.92139908]
[1747825696135,3.82008945,654.42,652.9,0.92139908]
[1747825696337,3.82008945,654.42,652.91,1.7721151]
[1747825696538,3.82008945,654.42,652.92,0.61535592]
[1747825696837,3.82008945,654.42,652.92,0.92135476]
[1747825697038,0.26625759,654.41,652.93,0.61535592]
[1747825698038,0.26625759,654.41,652.94,0.30599884]
[1747825698238,0.26625759,654.41,652.95,0.61535592]
[1747825698638,3.82008945,654.42,652.95,0.61535592]
[1747825699335,3.82008945,654.42,652.96,0.30599884]
[1747825699532,3.82008945,654.42,652.97,0.61535592]
[1747825699738,3.82008945,654.42,652.98,1.46226402]
[1747825700037,0.26623416,654.41,652.99,0.61535592]
[1747825700236,0.26623416,654.41,653.0,1.15625922]
[1747825700440,0.26623416,654.41,653.01,0.61571791]
[1747825700638,0.26623416,654.41,653.02,0.61571791]
[1747825700833,0.26623416,654.41,653.03,0.61571791]
[1747825701037,3.82008945,654.38,653.04,0.61571791]
[1747825701237,3.82008945,654.38,653.05,0.61571791]
[1747825701435,3.82008945,654.38,653.06,0.61571791]
[1747825701639,3.82008945,654.38,653.07,0.61571791]
[1747825701840,3.82008945,654.38,653.08,0.61571791]
[1747825702141,3.82008945,654.38,653.09,0.61571791]
[1747825702334,3.82008945,654.38,653.1,0.61665995]
[1747825702536,3.82008945,654.38,653.02,0.30599884]
[1747825702738,3.82008945,654.38,653.11,0.30599884]
[1747825702938,0.26622296,654.37,653.11,0.30599884]
[1747825703542,1.224,654.36,653.11,0.30599884]
[1747825703943,1.224,654.36,653.12,0.30599884]
[1747825704940,1.224,654.36,653.13,0.30599884]
[1747825705138,0.26623824,654.35,653.13,0.30599884]
[1747825706637,0.26623824,654.35,652.98,0.30599884]
[1747825706842,0.26623824,654.35,652.99,0.92361195]
[1747825707039,0.26623824,654.35,653.0,2.08096548]
[1747825709745,0.26623824,654.35,653.13,1.77378343]
[1747825709945,0.26623824,654.35,653.14,0.6164299]
[1747825710744,1.224,654.36,653.15,0.61754937]
[1747825710940,1.224,654.36,653.16,0.61754937]
[1747825711144,0.26620463,654.34,653.17,0.61754937]
[1747825711359,0.26620463,654.34,653.18,0.61754937]
[1747825711538,0.26620463,654.34,653.19,0.61754937]
[1747825711743,0.26620463,654.34,653.2,0.61754937]
[1747825712040,0.26620463,654.34,653.21,0.61754937]
[1747825712242,0.26620463,654.34,653.22,0.61805286]
[1747825712439,0.26620463,654.34,653.21,0.30599884]
[1747825712641,0.26620463,654.34,653.22,0.6180438]
[1747825712846,0.26620463,654.34,653.21,0.30599884]
[1747825713044,0.26620463,654.34,653.22,0.61804149]
[1747825713239,0.26620463,654.34,653.21,0.30599884]
[1747825713448,0.26620463,654.34,653.22,0.61837112]
[1747825713648,1.224,654.36,653.23,0.61837112]
[1747825713846,1.224,654.36,653.24,0.61837112]
[1747825714043,1.224,654.36,653.25,0.61834299]
[1747825714248,1.224,654.36,653.24,0.30599884]
[1747825715050,0.26622093,654.35,653.24,0.30599884]
[1747825715343,0.26622093,654.35,653.25,0.9243219]
[1747825715548,0.26622093,654.35,653.25,0.30599884]
[1747825716350,0.26622093,654.35,653.26,0.30599884]
[1747825716752,1.224,654.36,653.26,0.30599884]
[1747825717753,1.224,654.36,653.27,0.30599884]
[1747825717949,0.26621991,654.35,653.27,0.30599884]
[1747825719051,0.26621991,654.35,653.28,0.30599884]
[1747825719751,1.224,654.36,653.28,0.30599884]
[1747825720253,0.26621583,654.34,653.28,0.30599884]
[1747825720451,0.26621583,654.34,653.29,0.30599884]
[1747825721252,0.26621583,654.34,653.03,0.30197727]
[1747825721452,0.26621583,654.34,653.04,0.92427131]
[1747825721646,0.26621583,654.34,653.05,2.08387546]
[1747825721851,0.26621583,654.34,653.06,2.08387546]
[1747825722145,0.26621583,654.34,653.07,2.08387546]
[1747825722447,0.26621583,654.34,653.08,0.92427131]
[1747825722647,1.224,654.36,653.09,0.92427131]
[1747825722852,1.224,654.36,653.1,0.92427131]
[1747825723053,0.26621074,654.33,653.11,0.92427131]
[1747825723252,0.26621074,654.33,653.12,0.61827109]
[1747825723450,0.26621074,654.33,653.13,1.77787524]
[1747825723648,0.26621074,654.33,653.14,0.61827109]
[1747825723847,0.26621074,654.33,653.15,0.61827109]
[1747825724049,0.26621074,654.33,653.16,0.61827109]
[1747825724248,0.26621074,654.33,653.17,0.61827109]
[1747825724452,0.26621074,654.33,653.18,0.61827109]
[1747825724652,0.26621074,654.33,653.19,0.61827109]
[1747825724852,0.26621074,654.33,653.2,0.61827109]
[1747825725050,0.26621074,654.33,653.21,0.61827109]
[1747825725249,0.26621074,654.33,653.2,0.30598114]
[1747825725549,0.26621074,654.33,653.21,0.61822184]
[1747825725753,1.224,654.36,653.2,0.30598114]
[1747825726254,1.224,654.36,653.21,0.30598114]
[1747825726951,0.26622194,654.35,653.21,0.30598114]
[1747825727156,0.26622194,654.35,653.22,0.30598114]
[1747825727957,0.26622194,654.35,653.0,0.30598114]
[1747825728155,0.26622194,654.35,653.01,2.08448627]
[1747825728351,0.26622194,654.35,653.02,2.08448627]
[1747825728557,0.26622194,654.35,653.03,0.92434755]
[1747825728853,3.82008945,654.54,653.04,2.08448681]
[1747825729058,3.82008945,654.54,653.05,0.92434755]
[1747825729353,3.82008945,654.54,653.06,2.08446258]
[1747825729556,3.82008945,654.54,653.07,0.61834218]
[1747825729757,3.82008945,654.54,653.08,1.16013926]
[1747825730057,0.26620972,654.53,653.09,0.61834218]
[1747825730257,0.26620972,654.53,653.1,0.61837159]
[1747825730457,0.26620972,654.53,653.11,0.61837159]
[1747825730757,0.26620972,654.53,653.12,0.61837159]
[1747825731057,0.26620972,654.53,653.13,0.61838414]
[1747825731250,0.26620972,654.53,653.14,0.61838414]
[1747825731452,0.26620972,654.53,653.15,0.61838414]
[1747825731752,3.82008945,654.54,653.11,0.30598114]
[1747825731753,3.82008945,654.54,653.16,0.61838414]
[1747825731957,3.82008945,654.54,653.11,0.30598114]
[1747825732157,3.82008945,654.54,653.12,0.61839029]
[1747825732357,1.101,654.53,653.13,0.61839029]
[1747825732554,1.101,654.53,653.14,0.61839029]
[1747825732853,1.101,654.53,653.15,0.61839029]
[1747825733055,1.101,654.53,653.16,0.61839029]
[1747825733056,0.26620463,654.52,653.16,0.61839029]
[1747825733257,0.26620463,654.52,652.98,0.30598114]
[1747825733459,0.26620463,654.52,653.17,0.30598114]
[1747825734860,1.101,654.53,653.17,0.30598114]
[1747825735060,1.101,654.53,653.0,0.30598114]
[1747825735261,1.101,654.53,653.01,2.08459965]
[1747825735560,1.101,654.53,653.02,2.08460023]
[1747825735761,1.101,654.53,653.03,0.92443305]
[1747825735961,0.26621583,654.52,653.04,0.92443305]
[1747825736155,0.26621583,654.52,653.05,2.08460023]
[1747825736358,0.26621583,654.52,653.06,0.92443305]
[1747825736558,0.26621583,654.52,653.07,2.08460023]
[1747825736759,0.26621583,654.52,653.08,0.61842057]
[1747825737361,0.26621583,654.52,653.09,1.16016718]
[1747825737561,0.26621583,654.52,653.1,0.61842057]
[1747825737758,1.101,654.53,653.1,0.61842057]
[1747825737962,1.101,654.53,653.11,0.92440171]
[1747825738162,1.101,654.53,653.12,0.61842057]
[1747825738958,0.26620565,654.52,653.12,0.61842057]
[1747825739261,0.26620565,654.52,653.13,0.92445563]
[1747825739562,0.26620565,654.52,653.14,0.61847506]
[1747825739763,0.26620565,654.52,653.15,0.61847506]
[1747825739963,0.26620565,654.52,653.16,0.61847506]
[1747825740160,0.26620565,654.52,653.17,0.61847506]
[1747825740358,0.26620565,654.52,653.13,0.30598114]
[1747825740659,0.26620565,654.52,653.14,0.61850294]
[1747825740863,0.26620565,654.52,653.15,0.61850294]
[1747825741163,0.26620565,654.52,653.16,0.61848256]
[1747825741357,0.26620565,654.52,653.0,0.30598114]
[1747825741564,0.26620565,654.52,653.01,0.9244856]
[1747825741760,0.26620565,654.52,653.02,0.9244856]
[1747825741958,0.26620565,654.52,653.03,0.9244856]
[1747825742157,0.26620565,654.52,653.04,0.9244856]
[1747825742364,0.26620565,654.52,653.05,0.9244856]
[1747825742563,3.82008945,654.38,653.06,0.9244856]
[1747825742756,3.82008945,654.38,653.07,0.9244856]
[1747825742960,3.82008945,654.38,653.08,0.92447578]
[1747825743160,3.82008945,654.38,653.09,0.61846681]
[1747825743357,3.82008945,654.38,653.1,0.61846681]
[1747825743558,3.82008945,654.38,653.11,0.61846681]
[1747825743959,0.26620972,654.37,653.12,0.30598114]
[1747825744158,0.26620972,654.37,653.13,0.61846681]
[1747825745062,0.26620972,654.37,653.14,0.30598114]
[1747825745259,0.26620972,654.37,653.15,0.61846681]
[1747825746162,0.26620972,654.37,653.16,0.30598114]
[1747825746364,0.26620972,654.37,653.17,0.61846681]
[1747825746560,0.26620972,654.37,653.18,0.61846681]
[1747825746864,3.82008945,654.38,653.19,0.61846681]
[1747825747065,3.82008945,654.38,653.2,0.61846681]
[1747825747260,3.82008945,654.38,653.21,0.61846681]
[1747825747462,3.82008945,654.38,653.22,0.61846681]
[1747825747661,3.82008945,654.38,653.23,0.61846681]
[1747825747864,3.82008945,654.38,653.24,0.61844629]
[1747825748066,0.26619852,654.37,653.22,0.30598114]
[1747825748363,0.26619852,654.37,653.23,0.61844277]
[1747825748561,0.26619852,654.37,653.24,0.61844277]
[1747825748862,0.26619852,654.37,653.22,0.30598114]
[1747825749064,0.26619852,654.37,653.23,0.61846669]
[1747825749362,0.26619852,654.37,653.24,0.61849872]
[1747825749565,0.26619852,654.37,653.24,0.30598114]
[1747825749763,3.82008945,654.38,653.24,0.30598114]
[1747825751067,0.26621889,654.37,653.24,0.30598114]
[1747825751467,0.26621889,654.37,653.25,0.30598114]